fUST/lending_fUST_20250726
["ID","MTS","AMOUNT","RATE_DAILY","PERIOD"]
[374906416,1753465843591,-462.34889139,0.00019178,2]
[374906417,1753465843601,-460.0,0.00019178,2]
[374906418,1753465843611,-472.12,0.00019178,2]
[374906419,1753465843622,-460.0,0.00019178,2]
[374906420,1753465843632,-466.18785624,0.00019178,2]
[374906421,1753465843643,-267.31148572,0.00019178,2]
[374906422,1753465843656,-192.68851428,0.00019178,2]
[374906423,1753465843667,-460.0,0.00019178,2]
[374906424,1753465843676,-460.0,0.00019178,2]
[374906425,1753465843685,-169.09148572,0.00019178,2]
[374906441,1753465846352,-222.41416244,0.00019178,2]
[374906442,1753465846362,-881.34,0.00019178,2]
[374906443,1753465846372,-465.01127118,0.00019178,2]
[374906444,1753465846384,-460.0,0.00019178,2]
[374906445,1753465846393,-460.0,0.00019178,2]
[374906446,1753465846403,-899.4,0.00019178,2]
[374906447,1753465846413,-460.0,0.00019178,2]
[374906448,1753465846423,-460.0,0.00019178,2]
[374906449,1753465846432,-460.0,0.00019178,2]
[374906450,1753465846442,-460.0,0.00019178,2]
[374906451,1753465846452,-460.0,0.00019178,2]
[374906452,1753465846461,-460.0,0.00019178,2]
[374906453,1753465846471,-1019.26,0.00019178,2]
[374906454,1753465846480,-460.0,0.00019178,2]
[374906455,1753465846490,-460.0,0.00019178,2]
[374906456,1753465846500,-460.0,0.00019178,2]
[374906457,1753465846510,-460.0,0.00019178,2]
[374906458,1753465846520,-505.29,0.00019178,2]
[374906459,1753465846530,-151.0,0.00019178,2]
[374906460,1753465846543,-151.0,0.00019178,2]
[374906461,1753465846553,-460.0,0.00019178,2]
[374906462,1753465846569,-460.0,0.00019178,2]
[374906463,1753465846579,-460.0,0.00019178,2]
[374906464,1753465846590,-460.0,0.00019178,2]
[374906465,1753465846600,-460.0,0.00019178,2]
[374906466,1753465846609,-460.0,0.00019178,2]
[374906467,1753465846619,-436.40759287,0.00019178,2]
[374906468,1753465846628,-151.0,0.00019418,2]
[374906469,1753465846638,-151.0,0.00019418,2]
[374906470,1753465846647,-460.0,0.00019418,2]
[374906471,1753465846657,-151.0,0.00019418,2]
[374906472,1753465846666,-151.0,0.00019418,2]
[374906473,1753465846676,-460.0,0.00019418,2]
[374906474,1753465846685,-151.0,0.00019418,2]
[374906475,1753465846695,-460.0,0.00019418,2]
[374906476,1753465846704,-460.0,0.00019418,2]
[374906477,1753465846714,-151.0,0.00019418,2]
[374906478,1753465846723,-363.06229111,0.00019418,2]
[374906479,1753465846733,-151.0,0.00019418,2]
[374906480,1753465846743,-151.0,0.00019418,2]
[374906481,1753465846752,-151.0,0.00019418,2]
[374906482,1753465846762,-151.0,0.00019418,2]
[374906483,1753465846774,-329.936653,0.00019418,2]
[374906484,1753465846784,-329.936653,0.00019418,2]
[374906485,1753465846793,-460.0,0.00019418,2]
[374906486,1753465846802,-460.0,0.00019419,2]
[374906487,1753465846812,-460.0,0.00019419,2]
[374906488,1753465846821,-151.0,0.00019419,2]
[374906489,1753465846831,-460.0,0.00019419,2]
[374906490,1753465846841,-151.0,0.00019419,2]
[374906491,1753465846850,-151.0,0.00019419,2]
[374906492,1753465846860,-1037.77,0.00019419,2]
[374906493,1753465846869,-151.0,0.00019419,2]
[374906494,1753465846878,-151.877505,0.00019419,2]
[374906495,1753465846887,-460.0,0.00019419,2]
[374906496,1753465846898,-460.0,0.00019419,2]
[374906497,1753465846909,-500.0,0.0001942,2]
[374906498,1753465846920,-151.0,0.0001942,2]
[374906499,1753465846929,-151.0,0.0001942,2]
[374906500,1753465846939,-151.0,0.0001942,2]
[374906501,1753465846948,-182.192964,0.0001942,2]
[374906502,1753465846957,-269.22,0.00019451,2]
[374906503,1753465846966,-151.0,0.00019451,2]
[374906504,1753465846975,-151.0,0.00019451,2]
[374906505,1753465846984,-151.0,0.00019451,2]
[374906506,1753465846995,-151.0,0.00019451,2]
[374906507,1753465847004,-151.0,0.00019451,2]
[374906508,1753465847016,-151.0,0.00019451,2]
[374906509,1753465847026,-151.0,0.00019451,2]
[374906510,1753465847035,-460.0,0.00019451,2]
[374906511,1753465847045,-460.0,0.00019451,2]
[374906512,1753465847059,-460.0,0.00019451,2]
[374906513,1753465847068,-477.29,0.00019451,2]
[374906514,1753465847077,-460.0,0.00019451,2]
[374906515,1753465847087,-151.0,0.00019451,2]
[374906516,1753465847097,-460.0,0.00019451,2]
[374906517,1753465847106,-329.936653,0.00019451,2]
[374906518,1753465847263,-329.936653,0.00019451,2]
[374906519,1753465847274,-270.26334825,0.00019452,2]
[374906520,1753465847284,-151.0,0.00019452,2]
[374906521,1753465847293,-151.0,0.00019452,2]
[374906522,1753465847302,-274.763432,0.00019452,2]
[374906523,1753465847312,-151.0,0.00019452,2]
[374906524,1753465847323,-151.0,0.00019452,2]
[374906525,1753465847331,-151.0,0.00019452,2]
[374906526,1753465847342,-228.83,0.00019452,2]
[374906527,1753465847351,-151.0,0.00019452,2]
[374906528,1753465847361,-151.0,0.00019452,2]
[374906529,1753465847371,-151.0,0.00019452,2]
[374906530,1753465847380,-151.0,0.00019452,2]
[374906531,1753465847390,-491.1,0.00019452,2]
[374906532,1753465847400,-151.0,0.00019452,2]
[374906533,1753465847410,-151.0,0.00019452,2]
[374906534,1753465847420,-151.0,0.00019452,2]
[374906535,1753465847429,-151.0,0.00019452,2]
[374906536,1753465847439,-151.0,0.00019452,2]
[374906537,1753465847448,-151.0,0.00019452,2]
[374906538,1753465847457,-151.0,0.00019452,2]
[374906539,1753465847467,-518.06,0.00019452,2]
[374906540,1753465847476,-151.0,0.00019452,2]
[374906541,1753465847485,-275.37429,0.00019452,2]
[374906542,1753465847494,-460.0,0.00019452,2]
[374906543,1753465847504,-151.0,0.00019452,2]
[374906544,1753465847513,-151.0,0.00019452,2]
[374906545,1753465847523,-151.0,0.00019452,2]
[374906546,1753465847533,-151.0,0.00019452,2]
[374906547,1753465847542,-151.0,0.00019452,2]
[374906548,1753465847551,-151.0,0.00019452,2]
[374906549,1753465847561,-151.0,0.00019452,2]
[374906550,1753465847570,-151.0,0.00019452,2]
[374906551,1753465847579,-460.0,0.00019452,2]
[374906552,1753465847589,-151.0,0.00019452,2]
[374906553,1753465847598,-151.0,0.00019452,2]
[374906554,1753465847608,-151.0,0.00019452,2]
[374906555,1753465847618,-151.0,0.00019452,2]
[374906556,1753465847627,-151.0,0.00019452,2]
[374906557,1753465847637,-151.0,0.00019452,2]
[374906558,1753465847646,-151.0,0.00019452,2]
[374906559,1753465847655,-151.487078,0.00019452,2]
[374906560,1753465847664,-200.72981429,0.00019452,2]
[374906561,1753465847674,-203.489416,0.00019452,2]
[374906562,1753465847683,-151.0,0.00019452,2]
[374906563,1753465847692,-151.0,0.00019452,2]
[374906564,1753465847702,-151.0,0.00019452,2]
[374906565,1753465847711,-151.0,0.00019452,2]
[374906566,1753465847721,-151.0,0.00019452,2]
[374906567,1753465847730,-151.0,0.00019452,2]
[374906568,1753465847739,-151.0,0.00019452,2]
[374906569,1753465847749,-881.34,0.00019452,2]
[374906570,1753465847759,-594.62279548,0.00019452,2]
[374906571,1753465847769,-460.0,0.00019452,2]
[374906572,1753465847778,-899.4,0.00019452,2]
[374906573,1753465847787,-151.0,0.00019452,2]
[374906574,1753465847797,-460.0,0.00019452,2]
[374906575,1753465847806,-460.0,0.00019452,2]
[374906576,1753465847814,-460.0,0.00019452,2]
[374906577,1753465847824,-460.0,0.00019452,2]
[374906578,1753465847834,-460.0,0.00019452,2]
[374906579,1753465847843,-1019.26,0.00019452,2]
[374906580,1753465847852,-460.0,0.00019452,2]
[374906581,1753465847863,-151.0,0.00019452,2]
[374906582,1753465847872,-151.0,0.00019452,2]
[374906583,1753465847883,-460.0,0.00019452,2]
[374906584,1753465847894,-151.0,0.00019452,2]
[374906585,1753465847903,-151.0,0.00019452,2]
[374906586,1753465847914,-151.0,0.00019452,2]
[374906587,1753465847924,-151.0,0.00019452,2]
[374906588,1753465847934,-158.0,0.00019452,2]
[374906589,1753465847944,-151.0,0.00019452,2]
[374906590,1753465847953,-151.0,0.00019452,2]
[374906591,1753465847963,-460.0,0.00019452,2]
[374906592,1753465847973,-329.936653,0.00019452,2]
[374906593,1753465847983,-329.936653,0.00019452,2]
[374906594,1753465847992,-460.0,0.00019452,2]
[374906595,1753465848002,-329.936653,0.00019452,2]
[374906596,1753465848011,-329.936653,0.00019452,2]
[374906597,1753465848021,-460.0,0.00019452,2]
[374906598,1753465848031,-460.0,0.00019452,2]
[374906599,1753465848040,-526.49,0.00019452,2]
[374906600,1753465848053,-460.0,0.00019452,2]
[374906601,1753465848063,-500.0,0.00019473,2]
[374906602,1753465848073,-500.0,0.00019473,2]
[374906603,1753465848082,-500.0,0.00019473,2]
[374906604,1753465848091,-500.0,0.00019473,2]
[374906605,1753465848102,-500.0,0.00019473,2]
[374906606,1753465848112,-395.241576,0.00019509,2]
[374906607,1753465848121,-2503.33273279,0.00019692,2]
[374906608,1753465848131,-151.0,0.00019692,2]
[374906609,1753465848142,-460.0,0.00019692,2]
[374906610,1753465848152,-460.0,0.00019692,2]
[374906611,1753465848161,-460.0,0.00019692,2]
[374906612,1753465848170,-151.0,0.00019692,2]
[374906613,1753465848180,-151.0,0.00019692,2]
[374906614,1753465848190,-329.936653,0.00019692,2]
[374906615,1753465848199,-329.936653,0.00019692,2]
[374906616,1753465848209,-460.0,0.00019692,2]
[374906617,1753465848218,-151.0,0.00019693,2]
[374906618,1753465848228,-151.0,0.00019693,2]
[374906619,1753465848237,-151.0,0.00019693,2]
[374906620,1753465848246,-151.0,0.00019693,2]
[374906621,1753465848256,-151.0,0.00019693,2]
[374906622,1753465848265,-151.0,0.00019693,2]
[374906623,1753465848276,-460.0,0.00019693,2]
[374906624,1753465848285,-460.0,0.00019693,2]
[374906625,1753465848294,-460.0,0.00019693,2]
[374906626,1753465848303,-151.0,0.00019693,2]
[374906627,1753465848312,-155.740485,0.00019693,2]
[374906628,1753465848321,-1037.77,0.00019693,2]
[374906629,1753465848330,-329.936653,0.00019693,2]
[374906630,1753465848341,-460.0,0.00019693,2]
[374906631,1753465848351,-329.936653,0.00019693,2]
[374906632,1753465848360,-532.3,0.00019693,2]
[374906633,1753465848369,-151.0,0.00019725,2]
[374906634,1753465848378,-460.0,0.00019725,2]
[374906635,1753465848387,-460.0,0.00019725,2]
[374906636,1753465848396,-460.0,0.00019725,2]
[374906637,1753465848405,-460.0,0.00019725,2]
[374906638,1753465848415,-460.0,0.00019725,2]
[374906639,1753465848424,-460.0,0.00019725,2]
[374906640,1753465848434,-408.83684479,0.00019725,2]
[374906641,1753465848443,-151.0,0.00019725,2]
[374906642,1753465848452,-500.0,0.00019725,2]
[374906643,1753465848461,-151.0,0.00019725,2]
[374906644,1753465848470,-151.0,0.00019725,2]
[374906645,1753465848479,-151.0,0.00019725,2]
[374906646,1753465848489,-151.0,0.00019725,2]
[374906647,1753465848498,-151.0,0.00019725,2]
[374906648,1753465848508,-151.0,0.00019725,2]
[374906649,1753465848519,-151.0,0.00019725,2]
[374906650,1753465848529,-460.0,0.00019725,2]
[374906651,1753465848538,-460.0,0.00019725,2]
[374906652,1753465848548,-460.0,0.00019725,2]
[374906653,1753465848558,-477.29,0.00019725,2]
[374906654,1753465848567,-460.0,0.00019725,2]
[374906655,1753465848577,-151.0,0.00019725,2]
[374906656,1753465848587,-460.0,0.00019725,2]
[374906657,1753465848597,-151.0,0.00019725,2]
[374906658,1753465848608,-329.936653,0.00019725,2]
[374906659,1753465848618,-329.936653,0.00019725,2]
[374906660,1753465848628,-163.033802,0.00019726,2]
[374906661,1753465848637,-151.0,0.00019726,2]
[374906662,1753465848647,-151.0,0.00019726,2]
[374906663,1753465848657,-151.0,0.00019726,2]
[374906664,1753465848668,-151.0,0.00019726,2]
[374906665,1753465848677,-151.0,0.00019726,2]
[374906666,1753465848689,-232.843891,0.00019726,2]
[374906667,1753465848699,-151.0,0.00019726,2]
[374906668,1753465848709,-185.992018,0.00019726,2]
[374906669,1753465848718,-881.34,0.00019726,2]
[374906670,1753465848728,-899.4,0.00019726,2]
[374906671,1753465848738,-460.0,0.00019726,2]
[374906672,1753465848747,-460.0,0.00019726,2]
[374906673,1753465848756,-460.0,0.00019726,2]
[374906674,1753465848766,-460.0,0.00019726,2]
[374906675,1753465848775,-460.0,0.00019726,2]
[374906676,1753465848784,-1019.26,0.00019726,2]
[374906677,1753465848793,-460.0,0.00019726,2]
[374906678,1753465848802,-189.307008,0.00019726,2]
[374906679,1753465848812,-460.0,0.00019726,2]
[374906680,1753465848821,-151.0,0.00019726,2]
[374906681,1753465848829,-151.0,0.00019726,2]
[374906682,1753465848839,-460.0,0.00019726,2]
[374906683,1753465848848,-329.936653,0.00019726,2]
[374906684,1753465848858,-46.58248728,0.00019726,2]
[374906704,1753466165074,509.69238,0.00013699,2]
[374906775,1753467032528,-300.0,0.00018094,2]
[374906805,1753467033041,-500.0,0.00018094,2]
[374906806,1753467033051,-196.40487821,0.00018094,2]
[374906807,1753467033063,-303.59512179,0.00018094,2]
[374906808,1753467033073,-636.59357288,0.00018094,2]
[374906809,1753467033083,-11007.40632857,0.00018095,2]
[374906842,1753467038519,-528.78757581,0.00018095,2]
[374906845,1753467038531,-776.7065474,0.00018095,2]
[374906847,1753467038542,-978.18793508,0.00018095,2]
[374906849,1753467038555,-7864.70620777,0.00018095,2]
[374906851,1753467038566,-965.92894247,0.00018095,2]
[374906853,1753467038578,-886.7462414,0.00018095,2]
[374906859,1753467038625,-1526.68947299,0.00018095,2]
[374906866,1753467038679,-364.84074851,0.00018095,2]
[374906868,1753467038689,-2789.7200381,0.0001825,2]
[374906870,1753467038698,-312.16666667,0.00018278,2]
[374906872,1753467038707,-158.52017318,0.000189,2]
[374906874,1753467038717,-379.35064599,0.000189,2]
[374906876,1753467038726,-5094.42609362,0.00019,5]
[374906878,1753467038739,-567.87898395,0.00019,5]
[374906880,1753467038750,-288.12,0.00019,5]
[374907035,1753467040416,-423.54996,0.00019,5]
[374907303,1753467043151,-0.13533924,0.00019,5]
[374907313,1753467043234,-91.88962319,0.00019,5]
[374907315,1753467043245,-604.92249584,0.00019152,2]
[374907317,1753467043257,-2278.26349117,0.00019152,2]
[374907319,1753467043267,-151.0,0.00019178,2]
[374907321,1753467043276,-151.0,0.00019178,2]
[374907323,1753467043286,-460.0,0.00019178,2]
[374907325,1753467043296,-460.0,0.00019178,2]
[374907327,1753467043305,-460.0,0.00019178,2]
[374907329,1753467043315,-460.0,0.00019178,2]
[374907331,1753467043324,-588.79371624,0.00019178,2]
[374907333,1753467043334,-468.15819094,0.00019178,2]
[374907335,1753467043343,-460.0,0.00019178,2]
[374907337,1753467043352,-460.0,0.00019178,2]
[374907339,1753467043362,-584.56,0.00019178,2]
[374907341,1753467043372,-314.00198926,0.00019178,2]
[374907343,1753467043386,-460.0,0.00019178,2]
[374907345,1753467043395,-460.0,0.00019178,2]
[374907347,1753467043405,-866.6,0.00019178,2]
[374907349,1753467043414,-234.05372782,0.00019178,2]
[374907351,1753467043427,-229.68627218,0.00019178,2]
[374907354,1753467043437,-460.0,0.00019178,2]
[374907356,1753467043449,-1357.85,0.00019178,2]
[374907358,1753467043460,-460.0,0.00019178,2]
[374907360,1753467043470,-460.0,0.00019178,2]
[374907362,1753467043479,-460.0,0.00019178,2]
[374907364,1753467043489,-460.0,0.00019178,2]
[374907366,1753467043499,-460.0,0.00019178,2]
[374907368,1753467043508,-460.0,0.00019178,2]
[374907370,1753467043518,-460.0,0.00019178,2]
[374907372,1753467043528,-460.0,0.00019178,2]
[374907374,1753467043537,-460.0,0.00019178,2]
[374907376,1753467043546,-460.0,0.0001918,2]
[374907378,1753467043555,-460.0,0.0001918,2]
[374907380,1753467043565,-891.85,0.0001918,2]
[374907382,1753467043574,-150.0,0.00019193,2]
[374907384,1753467043584,-460.0,0.00019193,2]
[374907386,1753467043595,-460.0,0.00019193,2]
[374907388,1753467043604,-460.0,0.00019193,2]
[374907390,1753467043614,-460.0,0.00019193,2]
[374907392,1753467043625,-167.59473784,0.00019193,2]
[374907394,1753467043634,-2883.18598701,0.00019249,2]
[374907396,1753467043643,-433.76491711,0.00019417,2]
[374907398,1753467043654,-460.0,0.00019417,2]
[374907400,1753467043663,-151.0,0.00019417,2]
[374907402,1753467043674,-151.0,0.00019417,2]
[374907404,1753467043684,-460.0,0.00019418,2]
[374907406,1753467043694,-460.0,0.00019418,2]
[374907408,1753467043703,-151.0,0.00019418,2]
[374907410,1753467043713,-460.0,0.00019418,2]
[374907412,1753467043722,-151.0,0.00019418,2]
[374907414,1753467043731,-151.0,0.00019418,2]
[374907416,1753467043741,-460.0,0.00019418,2]
[374907418,1753467043751,-1352.83,0.00019418,2]
[374907420,1753467043760,-151.0,0.00019419,2]
[374907422,1753467043771,-151.0,0.00019419,2]
[374907424,1753467043782,-500.0,0.0001942,2]
[374907426,1753467043792,-151.0,0.0001942,2]
[374907428,1753467043802,-151.0,0.0001942,2]
[374907430,1753467043812,-286.841231,0.00019451,2]
[374907432,1753467043822,-151.0,0.00019451,2]
[374907434,1753467043832,-526.52524147,0.00019452,2]
[374907436,1753467043841,-460.0,0.00019452,2]
[374907438,1753467043851,-151.0,0.00019452,2]
[374907440,1753467043861,-500.68,0.00019452,2]
[374907442,1753467043871,-866.6,0.00019452,2]
[374907444,1753467043880,-463.74,0.00019452,2]
[374907446,1753467043890,-460.0,0.00019452,2]
[374907448,1753467043900,-1357.85,0.00019452,2]
[374907450,1753467043910,-295.00291493,0.00019452,2]
[374907452,1753467043922,-164.99708507,0.00019452,2]
[374907454,1753467043932,-460.0,0.00019452,2]
[374907456,1753467043942,-460.0,0.00019452,2]
[374907458,1753467043952,-252.62810709,0.00019452,2]
[374907460,1753467043961,-460.0,0.00019452,2]
[374907462,1753467043971,-151.0,0.00019452,2]
[374907464,1753467043980,-460.0,0.00019452,2]
[374907466,1753467043989,-460.0,0.00019452,2]
[374907468,1753467043999,-891.85,0.00019454,2]
[374907470,1753467044008,-577.99,0.00019467,2]
[374907472,1753467044021,-460.0,0.00019467,2]
[374907474,1753467044031,-460.0,0.00019467,2]
[374907476,1753467044041,-460.0,0.00019467,2]
[374907478,1753467044050,-151.0,0.00019467,2]
[374907480,1753467044062,-329.36798,0.00019508,2]
[374907482,1753467044072,-151.6572,0.00019508,2]
[374907484,1753467044082,-2883.18598702,0.00019525,2]
[374907486,1753467044091,-527.35429661,0.00019648,2]
[374907488,1753467044102,-580.02764968,0.00019648,2]
[374907490,1753467044111,-460.0,0.00019648,2]
[374907492,1753467044121,-484.96,0.00019648,2]
[374907494,1753467044130,-460.0,0.00019648,2]
[374907496,1753467044139,-460.0,0.00019648,2]
[374907498,1753467044149,-669.56,0.00019648,2]
[374907500,1753467044159,-460.0,0.00019648,2]
[374907502,1753467044171,-460.0,0.00019648,2]
[374907504,1753467044180,-605.43779687,0.00019691,2]
[374907506,1753467044189,-460.0,0.00019691,2]
[374907508,1753467044198,-171.55857309,0.00019691,2]
[374907510,1753467044208,-460.0,0.00019691,2]
[374907512,1753467044217,-157.924544,0.00019691,2]
[374907514,1753467044227,-256.196864,0.00019691,2]
[374907516,1753467044237,-460.0,0.00019691,2]
[374907518,1753467044247,-151.0,0.00019692,2]
[374907520,1753467044256,-460.0,0.00019692,2]
[374907522,1753467044265,-460.0,0.00019692,2]
[374907523,1753467044280,-151.0,0.00019692,2]
[374907525,1753467044289,-460.0,0.00019692,2]
[374907528,1753467044299,-1352.83,0.00019692,2]
[374907530,1753467044308,-151.0,0.00019702,2]
[374907532,1753467044318,-151.0,0.00019702,2]
[374907534,1753467044327,-151.0,0.00019726,2]
[374907536,1753467044336,-460.0,0.00019726,2]
[374907538,1753467044346,-151.0,0.00019726,2]
[374907540,1753467044356,-866.6,0.00019726,2]
[374907542,1753467044365,-463.74,0.00019726,2]
[374907544,1753467044377,-460.0,0.00019726,2]
[374907546,1753467044387,-1357.85,0.00019726,2]
[374907548,1753467044396,-460.0,0.00019726,2]
[374907550,1753467044405,-460.0,0.00019726,2]
[374907552,1753467044416,-460.0,0.00019726,2]
[374907554,1753467044425,-290.93839525,0.00019726,2]
[374907556,1753467044434,-460.0,0.00019726,2]
[374907558,1753467044444,-1.16415178,0.00019726,2]
[374907560,1753467044456,-458.83584822,0.00019726,2]
[374907562,1753467044465,-252.90170744,0.00019726,2]
[374907564,1753467044475,-891.85,0.00019728,2]
[374907566,1753467044483,-500.0,0.00019739,2]
[374907567,1753467044493,-460.0,0.00019741,2]
[374907569,1753467044503,-460.0,0.00019741,2]
[374907572,1753467044512,-460.0,0.00019741,2]
[374907573,1753467044529,-102.55828487,0.00019741,2]
[374907576,1753467044542,-48.44171513,0.00019741,2]
[374907578,1753467044553,-279.98786125,0.00019741,2]
[374907580,1753467044564,-140.01213875,0.00019741,2]
[374907582,1753467044574,-500.0,0.00019839,2]
[374907584,1753467044584,-646.26358049,0.00019839,2]
[374907586,1753467044593,-500.0,0.00019847,2]
[374907588,1753467044603,-184.88570209,0.0001985,2]
[374907590,1753467044613,-500.0,0.0001985,2]
[374907592,1753467044622,-500.0,0.00019903,2]
[374907594,1753467044632,-460.0,0.00019922,2]
[374907596,1753467044641,-484.96,0.00019922,2]
[374907598,1753467044651,-460.0,0.00019922,2]
[374907600,1753467044660,-460.0,0.00019922,2]
[374907602,1753467044670,-669.56,0.00019922,2]
[374907604,1753467044679,-460.0,0.00019922,2]
[374907606,1753467044688,-460.0,0.00019922,2]
[374907608,1753467044699,-151.0,0.00019965,2]
[374907610,1753467044709,-179.0,0.00019965,2]
[374907612,1753467044718,-460.0,0.00019965,2]
[374907614,1753467044728,-460.0,0.00019966,2]
[374907616,1753467044739,-460.0,0.00019966,2]
[374907617,1753467044756,-460.0,0.00019966,2]
[374907620,1753467044766,-1352.83,0.00019966,2]
[374907621,1753467044781,-151.0,0.00019967,2]
[374907623,1753467044790,-151.0,0.0002,2]
[374907638,1753467044919,-151.0,0.0002,2]
[374907640,1753467044929,-460.0,0.0002,2]
[374907642,1753467044940,-151.0,0.0002,2]
[374907644,1753467044949,-866.6,0.0002,2]
[374907646,1753467044959,-463.74,0.0002,2]
[374907648,1753467044969,-460.0,0.0002,2]
[374907650,1753467044978,-1357.85,0.0002,2]
[374907652,1753467044989,-460.0,0.0002,2]
[374907654,1753467044999,-460.0,0.0002,2]
[374907656,1753467045008,-460.0,0.0002,2]
[374907658,1753467045020,-151.0,0.0002,2]
[374907660,1753467045029,-460.0,0.0002,2]
[374907662,1753467045039,-460.0,0.0002,2]
[374907664,1753467045048,-891.85,0.00020002,2]
[374907666,1753467045057,-460.0,0.00020015,2]
[374907668,1753467045073,-460.0,0.00020015,2]
[374907670,1753467045082,-460.0,0.00020015,2]
[374907672,1753467045091,-158.52017312,0.00020048,2]
[374907674,1753467045101,-179.91004498,0.0002007,2]
[374907676,1753467045110,-1251.66636639,0.00020072,2]
[374907678,1753467045119,-9418.89981048,0.00020073,2]
[374907680,1753467045130,-870.4725065,0.00020073,2]
[374907700,1753467045322,-10570.75273797,0.00020073,2]
[374907702,1753467045331,-151.0,0.00020073,2]
[374907703,1753467045341,-151.0,0.00020073,2]
[374907705,1753467045351,-151.0,0.00020173,2]
[374907707,1753467045360,-151.0,0.00020173,2]
[374907709,1753467045369,-151.0,0.00020173,2]
[374907711,1753467045380,-509.69238,0.00020187,2]
[374907713,1753467045390,-460.0,0.00020196,2]
[374907715,1753467045399,-484.96,0.00020196,2]
[374907717,1753467045408,-460.0,0.00020196,2]
[374907719,1753467045419,-460.0,0.00020196,2]
[374907721,1753467045428,-669.56,0.00020196,2]
[374907723,1753467045437,-460.0,0.00020196,2]
[374907725,1753467045447,-460.0,0.00020196,2]
[374907727,1753467045457,-716.65,0.0002023,3]
[374907729,1753467045467,-460.0,0.00020239,2]
[374907731,1753467045477,-460.0,0.0002024,2]
[374907733,1753467045486,-460.0,0.0002024,2]
[374907735,1753467045495,-460.0,0.0002024,2]
[374907737,1753467045504,-1352.83,0.0002024,2]
[374907739,1753467045513,-151.0,0.00020273,2]
[374907741,1753467045524,-151.0,0.00020273,2]
[374907743,1753467045534,-151.0,0.00020273,2]
[374907745,1753467045543,-188.43017287,0.00020273,2]
[374907747,1753467045555,-271.56982713,0.00020273,2]
[374907749,1753467045565,-151.0,0.00020273,2]
[374907751,1753467045575,-866.6,0.00020273,2]
[374907753,1753467045584,-463.74,0.00020273,2]
[374907755,1753467045593,-460.0,0.00020273,2]
[374907757,1753467045602,-1357.85,0.00020273,2]
[374907759,1753467045612,-460.0,0.00020273,2]
[374907761,1753467045622,-460.0,0.00020273,2]
[374907763,1753467045631,-460.0,0.00020273,2]
[374907764,1753467045640,-151.0,0.00020273,2]
[374907766,1753467045649,-460.0,0.00020273,2]
[374907768,1753467045658,-295.71,0.00020273,2]
[374907770,1753467045668,-891.85,0.00020276,2]
[374907772,1753467045677,-1122.75820574,0.00020287,2]
[374907774,1753467045686,-414.68467738,0.00020289,2]
[374907776,1753467045696,-460.0,0.00020289,2]
[374907778,1753467045705,-460.0,0.00020289,2]
[374907780,1753467045714,-5000.0,0.00020372,2]
[374907782,1753467045723,-151.0,0.0002047,2]
[374907784,1753467045733,-460.0,0.0002047,2]